[Event "Titled Tuesday Blitz January 10 Early 2023"]
[White "Shtompel, Yuriy"]
[Black "Karttunen, Mika"]
[WhiteFideId "14168278"]
[BlackFideId "502081"]
[WhiteElo "1938"]
[BlackElo "2490"]
[Result "1-0"]
[Round "03"]
[TimeControl "180+2"]
[Date "2023.01.10"]
[WhiteClock "0:00:14"]
[BlackClock "0:00:13"]

1. e4 {[%clk 0:03:00]}  e5 {[%clk 0:02:59]} 2. Nf3 {[%clk 0:03:01]}  Nc6 {[%clk 0:02:59]} 3. Bc4 {[%clk 0:03:01]}  Bc5 {[%clk 0:02:58]} 4. d3 {[%clk 0:03:00]}  Nf6 {[%clk 0:02:53]} 5. h3 {[%clk 0:03:00]}  h6 {[%clk 0:02:47]} 6. O-O {[%clk 0:02:57]}  a6 {[%clk 0:02:45]} 7. c3 {[%clk 0:02:54]}  Ba7 {[%clk 0:02:44]} 8. Re1 {[%clk 0:02:53]}  d6 {[%clk 0:02:43]} 9. Bb3 {[%clk 0:02:52]}  Qe7 {[%clk 0:02:40]} 10. Nbd2 {[%clk 0:02:51]}  g5 {[%clk 0:02:31]} 11. Nh2 {[%clk 0:02:45]}  h5 {[%clk 0:02:26]} 12. Ndf1 {[%clk 0:02:41]}  g4 {[%clk 0:02:23]} 13. h4 {[%clk 0:02:40]}  g3 {[%clk 0:02:00]} 14. Nxg3 {[%clk 0:02:33]}  Ng4 {[%clk 0:01:57]} 15. Nxg4 {[%clk 0:01:37]}  Bxg4 {[%clk 0:01:34]} 16. Nf5 {[%clk 0:01:24]}  Bxf5 {[%clk 0:01:22]} 17. exf5 {[%clk 0:01:23]}  Qxh4 {[%clk 0:01:22]} 18. Qf3 {[%clk 0:01:20]}  Rg8 {[%clk 0:00:44]} 19. Be3 {[%clk 0:00:49]}  Qg4 {[%clk 0:00:29]} 20. Qd5 {[%clk 0:00:44]}  Qxf5 {[%clk 0:00:23]} 21. Bxa7 {[%clk 0:00:42]}  Rxa7 {[%clk 0:00:23]} 22. d4 {[%clk 0:00:41]}  Kf8 {[%clk 0:00:17]} 23. Re3 {[%clk 0:00:36]}  Rg7 {[%clk 0:00:16]} 24. Rae1 {[%clk 0:00:33]}  Ra8 {[%clk 0:00:16]} 25. Rf3 {[%clk 0:00:30]}  Qg5 {[%clk 0:00:16]} 26. Rg3 {[%clk 0:00:30]}  Qf6 {[%clk 0:00:15]} 27. Ree3 {[%clk 0:00:27]}  h4 {[%clk 0:00:15]} 28. Rxg7 {[%clk 0:00:27]}  Qxg7 {[%clk 0:00:15]} 29. Rf3 {[%clk 0:00:27]}  Nd8 {[%clk 0:00:14]} 30. dxe5 {[%clk 0:00:26]}  dxe5 {[%clk 0:00:14]} 31. Qc5+ {[%clk 0:00:25]}  Kg8 {[%clk 0:00:14]} 32. Qxc7 {[%clk 0:00:25]}  Qg5 {[%clk 0:00:14]} 33. Bxf7+ {[%clk 0:00:20]}  Kh8 {[%clk 0:00:13]} 34. Bb3 {[%clk 0:00:19]}  Nc6 {[%clk 0:00:14]} 35. Qf7 {[%clk 0:00:18]}  Rd8 {[%clk 0:00:13]} 36. Rf5 {[%clk 0:00:14]} 1-0


[Site "https://www.chess.com"]

[Event "Titled Tuesday Blitz January 10 Early 2023"]
[White "Liang, Justin"]
[Black "Ovezdurdyyeva, Jemal"]
[WhiteFideId "2099942"]
[BlackFideId "14001888"]
[WhiteElo "2052"]
[BlackElo "2078"]
[Result "1-0"]
[Round "03"]
[TimeControl "180+2"]
[Date "2023.01.10"]
[WhiteClock "0:00:10"]
[BlackClock "0:00:03"]

1. d4 {[%clk 0:02:53]}  d5 {[%clk 0:02:59]} 2. c4 {[%clk 0:02:50]}  g6 {[%clk 0:02:59]} 3. g3 {[%clk 0:02:48]}  Bg7 {[%clk 0:02:58]} 4. Bg2 {[%clk 0:02:48]}  c6 {[%clk 0:02:56]} 5. Nf3 {[%clk 0:02:47]}  Nf6 {[%clk 0:02:56]} 6. O-O {[%clk 0:02:47]}  O-O {[%clk 0:02:56]} 7. Nbd2 {[%clk 0:02:38]}  Bg4 {[%clk 0:02:49]} 8. Ne5 {[%clk 0:02:38]}  Be6 {[%clk 0:02:48]} 9. b3 {[%clk 0:02:07]}  Nbd7 {[%clk 0:02:46]} 10. Nd3 {[%clk 0:01:59]}  dxc4 {[%clk 0:02:44]} 11. Nxc4 {[%clk 0:01:59]}  Nb6 {[%clk 0:02:38]} 12. Nxb6 {[%clk 0:01:47]}  axb6 {[%clk 0:02:30]} 13. Bb2 {[%clk 0:01:45]}  Bd5 {[%clk 0:02:25]} 14. Bh3 {[%clk 0:01:14]}  Qd6 {[%clk 0:01:35]} 15. f3 {[%clk 0:00:40]}  Be6 {[%clk 0:01:30]} 16. Bg2 {[%clk 0:00:36]}  Bh6 {[%clk 0:01:23]} 17. e4 {[%clk 0:00:20]}  Be3+ {[%clk 0:01:22]} 18. Kh1 {[%clk 0:00:19]}  Bxd4 {[%clk 0:01:22]} 19. e5 {[%clk 0:00:18]}  Qd7 {[%clk 0:01:07]} 20. exf6 {[%clk 0:00:17]}  Bxf6 {[%clk 0:00:58]} 21. Bxf6 {[%clk 0:00:17]}  exf6 {[%clk 0:00:58]} 22. Nf4 {[%clk 0:00:17]}  Qxd1 {[%clk 0:00:56]} 23. Rfxd1 {[%clk 0:00:18]}  Bf5 {[%clk 0:00:57]} 24. g4 {[%clk 0:00:17]}  Be6 {[%clk 0:00:48]} 25. Nxe6 {[%clk 0:00:16]}  fxe6 {[%clk 0:00:49]} 26. Rd7 {[%clk 0:00:16]}  Rf7 {[%clk 0:00:49]} 27. Rxf7 {[%clk 0:00:13]}  Kxf7 {[%clk 0:00:50]} 28. Kg1 {[%clk 0:00:12]}  e5 {[%clk 0:00:50]} 29. Kf2 {[%clk 0:00:12]}  Ke6 {[%clk 0:00:50]} 30. Ke3 {[%clk 0:00:13]}  f5 {[%clk 0:00:50]} 31. h3 {[%clk 0:00:13]}  f4+ {[%clk 0:00:39]} 32. Kd3 {[%clk 0:00:08]}  Kd5 {[%clk 0:00:34]} 33. Kc3 {[%clk 0:00:09]}  Ke6 {[%clk 0:00:27]} 34. Bf1 {[%clk 0:00:09]}  b5 {[%clk 0:00:25]} 35. Bd3 {[%clk 0:00:10]}  Kf6 {[%clk 0:00:15]} 36. a4 {[%clk 0:00:10]}  bxa4 {[%clk 0:00:12]} 37. Rxa4 {[%clk 0:00:11]}  Rd8 {[%clk 0:00:11]} 38. Ra7 {[%clk 0:00:11]}  Rd7 {[%clk 0:00:12]} 39. Ba6 {[%clk 0:00:11]}  Kg5 {[%clk 0:00:10]} 40. Rxb7 {[%clk 0:00:11]}  Rd1 {[%clk 0:00:10]} 41. Rxh7 {[%clk 0:00:10]}  Rc1+ {[%clk 0:00:11]} 42. Kd2 {[%clk 0:00:10]}  Rb1 {[%clk 0:00:10]} 43. Kc2 {[%clk 0:00:09]}  Rh1 {[%clk 0:00:09]} 44. Bb7 {[%clk 0:00:09]}  Rh2+ {[%clk 0:00:09]} 45. Kc3 {[%clk 0:00:10]}  e4 {[%clk 0:00:08]} 46. Bxc6 {[%clk 0:00:10]}  e3 {[%clk 0:00:08]} 47. Bb5 {[%clk 0:00:10]}  Rf2 {[%clk 0:00:06]} 48. Bc6 {[%clk 0:00:09]}  Kf6 {[%clk 0:00:05]} 49. Rd7 {[%clk 0:00:09]}  e2 {[%clk 0:00:05]} 50. Kd2 {[%clk 0:00:08]}  Rh2 {[%clk 0:00:04]} 51. Rd4 {[%clk 0:00:08]}  g5 {[%clk 0:00:04]} 52. Re4 {[%clk 0:00:08]}  e1=Q+ {[%clk 0:00:04]} 53. Kxe1 {[%clk 0:00:08]}  Rxh3 {[%clk 0:00:05]} 54. Ke2 {[%clk 0:00:08]}  Rh2+ {[%clk 0:00:05]} 55. Kd3 {[%clk 0:00:08]}  Rb2 {[%clk 0:00:05]} 56. Rb4 {[%clk 0:00:09]}  Ke5 {[%clk 0:00:04]} 57. Be4 {[%clk 0:00:09]}  Rb1 {[%clk 0:00:03]} 58. Rb5+ {[%clk 0:00:09]}  Kf6 {[%clk 0:00:03]} 59. Kc3 {[%clk 0:00:10]} 1-0


[Site "https://www.chess.com"]

[Event "Titled Tuesday Blitz January 10 Early 2023"]
[White "Di Nicolantonio, Lucas"]
[Black "Golizadeh, Asghar"]
[WhiteFideId "680460"]
[BlackFideId "12505269"]
[WhiteElo "2376"]
[BlackElo "2455"]
[Result "0-1"]
[Round "03"]
[TimeControl "180+2"]
[Date "2023.01.10"]
[WhiteClock "0:00:08"]
[BlackClock "0:00:09"]

1. d4 {[%clk 0:03:00]}  Nf6 {[%clk 0:02:58]} 2. c4 {[%clk 0:02:58]}  e6 {[%clk 0:02:58]} 3. Nf3 {[%clk 0:02:58]}  Bb4+ {[%clk 0:02:56]} 4. Nbd2 {[%clk 0:02:57]}  b6 {[%clk 0:02:51]} 5. g3 {[%clk 0:02:55]}  Bb7 {[%clk 0:02:50]} 6. Bg2 {[%clk 0:02:55]}  Bxd2+ {[%clk 0:02:49]} 7. Bxd2 {[%clk 0:02:55]}  h6 {[%clk 0:02:49]} 8. O-O {[%clk 0:02:56]}  O-O {[%clk 0:02:49]} 9. d5 {[%clk 0:02:52]}  exd5 {[%clk 0:02:48]} 10. Nd4 {[%clk 0:02:52]}  Nc6 {[%clk 0:02:44]} 11. Nf5 {[%clk 0:02:46]}  dxc4 {[%clk 0:02:41]} 12. Bc3 {[%clk 0:02:46]}  Na5 {[%clk 0:02:34]} 13. e4 {[%clk 0:02:38]}  d6 {[%clk 0:02:25]} 14. Nxg7 {[%clk 0:02:29]}  Kxg7 {[%clk 0:02:22]} 15. Qg4+ {[%clk 0:02:29]}  Kh8 {[%clk 0:02:15]} 16. Qf5 {[%clk 0:02:25]}  Kg7 {[%clk 0:02:13]} 17. Qg4+ {[%clk 0:02:05]}  Kh7 {[%clk 0:02:10]} 18. Qf5+ {[%clk 0:02:02]}  Kg7 {[%clk 0:02:10]} 19. g4 {[%clk 0:01:42]}  Bc8 {[%clk 0:02:05]} 20. Qf4 {[%clk 0:01:42]}  Kg6 {[%clk 0:01:48]} 21. e5 {[%clk 0:01:37]}  dxe5 {[%clk 0:01:47]} 22. Qxe5 {[%clk 0:01:32]}  Re8 {[%clk 0:01:14]} 23. Be4+ {[%clk 0:01:02]}  Kg7 {[%clk 0:01:13]} 24. Qf4 {[%clk 0:01:03]}  Bb7 {[%clk 0:00:44]} 25. Bxb7 {[%clk 0:00:58]}  Nxb7 {[%clk 0:00:44]} 26. Rad1 {[%clk 0:00:59]}  Nd6 {[%clk 0:00:40]} 27. h4 {[%clk 0:00:56]}  Re4 {[%clk 0:00:37]} 28. Qf3 {[%clk 0:00:47]}  h5 {[%clk 0:00:32]} 29. g5 {[%clk 0:00:34]}  Rg4+ {[%clk 0:00:31]} 30. Qxg4 {[%clk 0:00:35]}  hxg4 {[%clk 0:00:30]} 31. Bxf6+ {[%clk 0:00:36]}  Qxf6 {[%clk 0:00:30]} 32. gxf6+ {[%clk 0:00:37]}  Kxf6 {[%clk 0:00:30]} 33. Rd4 {[%clk 0:00:36]}  Kf5 {[%clk 0:00:27]} 34. f3 {[%clk 0:00:33]}  gxf3 {[%clk 0:00:24]} 35. Rxf3+ {[%clk 0:00:34]}  Ke5 {[%clk 0:00:24]} 36. Rg4 {[%clk 0:00:31]}  f5 {[%clk 0:00:25]} 37. Rg7 {[%clk 0:00:29]}  c5 {[%clk 0:00:20]} 38. h5 {[%clk 0:00:27]}  Rh8 {[%clk 0:00:20]} 39. Rh3 {[%clk 0:00:27]}  Kf6 {[%clk 0:00:18]} 40. Rg6+ {[%clk 0:00:26]}  Ke5 {[%clk 0:00:18]} 41. h6 {[%clk 0:00:25]}  Ne8 {[%clk 0:00:09]} 42. h7 {[%clk 0:00:22]}  Nf6 {[%clk 0:00:09]} 43. Re3+ {[%clk 0:00:23]}  Kf4 {[%clk 0:00:09]} 44. Rh3 {[%clk 0:00:14]}  Rxh7 {[%clk 0:00:07]} 45. Rxh7 {[%clk 0:00:15]}  Nxh7 {[%clk 0:00:07]} 46. Rg7 {[%clk 0:00:15]}  Ng5 {[%clk 0:00:08]} 47. Rxa7 {[%clk 0:00:16]}  Nf3+ {[%clk 0:00:08]} 48. Kf2 {[%clk 0:00:16]}  Ne5 {[%clk 0:00:09]} 49. Rb7 {[%clk 0:00:14]}  Nd3+ {[%clk 0:00:08]} 50. Ke2 {[%clk 0:00:15]}  Nxb2 {[%clk 0:00:08]} 51. Rxb6 {[%clk 0:00:16]}  Na4 {[%clk 0:00:08]} 52. Rc6 {[%clk 0:00:14]}  Ke4 {[%clk 0:00:08]} 53. Ra6 {[%clk 0:00:14]}  Nc3+ {[%clk 0:00:08]} 54. Kd2 {[%clk 0:00:14]}  Nd5 {[%clk 0:00:07]} 55. Rc6 {[%clk 0:00:14]}  Kd4 {[%clk 0:00:07]} 56. a4 {[%clk 0:00:14]}  c3+ {[%clk 0:00:08]} 57. Kc1 {[%clk 0:00:14]}  Nb4 {[%clk 0:00:08]} 58. Rd6+ {[%clk 0:00:13]}  Kc4 {[%clk 0:00:08]} 59. a5 {[%clk 0:00:13]}  Kb3 {[%clk 0:00:09]} 60. Rb6 {[%clk 0:00:09]}  f4 {[%clk 0:00:09]} 61. a6 {[%clk 0:00:09]}  f3 {[%clk 0:00:09]} 62. a7 {[%clk 0:00:10]}  f2 {[%clk 0:00:09]} 63. Rf6 {[%clk 0:00:08]}  Na2+ {[%clk 0:00:08]} 64. Kd1 {[%clk 0:00:09]}  c2+ {[%clk 0:00:09]} 65. Ke2 {[%clk 0:00:09]}  c1=Q {[%clk 0:00:09]} 66. Rf3+ {[%clk 0:00:08]}  Nc3+ {[%clk 0:00:08]} 67. Rxc3+ {[%clk 0:00:08]}  Qxc3 {[%clk 0:00:08]} 68. a8=Q {[%clk 0:00:09]}  Qe1+ {[%clk 0:00:08]} 69. Kd3 {[%clk 0:00:08]}  f1=Q# {[%clk 0:00:09]} 0-1


[Site "https://www.chess.com"]

[Event "Titled Tuesday Blitz January 10 Early 2023"]
[White "Samaganova, Aleksandra"]
[Black "Flores Quillas, Diego Saul Rodri"]
[WhiteFideId "13800221"]
[BlackFideId "3822508"]
[WhiteElo "1856"]
[BlackElo "2359"]
[Result "1-0"]
[Round "03"]
[TimeControl "180+2"]
[Date "2023.01.10"]
[WhiteClock "0:01:00"]
[BlackClock "0:01:42"]

1. c4 {[%clk 0:03:00]}  c5 {[%clk 0:02:52]} 2. Nf3 {[%clk 0:02:59]}  Nc6 {[%clk 0:02:52]} 3. e3 {[%clk 0:02:59]}  Nf6 {[%clk 0:02:50]} 4. Nc3 {[%clk 0:02:58]}  g6 {[%clk 0:02:47]} 5. d4 {[%clk 0:02:58]}  cxd4 {[%clk 0:02:48]} 6. exd4 {[%clk 0:02:58]}  d5 {[%clk 0:02:48]} 7. cxd5 {[%clk 0:02:58]}  Nxd5 {[%clk 0:02:49]} 8. Be2 {[%clk 0:02:57]}  Bg7 {[%clk 0:02:49]} 9. O-O {[%clk 0:02:56]}  O-O {[%clk 0:02:48]} 10. h3 {[%clk 0:02:57]}  Nxc3 {[%clk 0:02:43]} 11. bxc3 {[%clk 0:02:57]}  b6 {[%clk 0:02:43]} 12. Bf4 {[%clk 0:02:45]}  Bb7 {[%clk 0:02:43]} 13. Qd2 {[%clk 0:02:42]}  Rc8 {[%clk 0:02:42]} 14. Bh6 {[%clk 0:02:40]}  Na5 {[%clk 0:02:40]} 15. Bxg7 {[%clk 0:02:40]}  Kxg7 {[%clk 0:02:41]} 16. Ne5 {[%clk 0:02:35]}  f6 {[%clk 0:02:30]} 17. Ng4 {[%clk 0:02:30]}  Qd6 {[%clk 0:02:28]} 18. Qh6+ {[%clk 0:02:18]}  Kg8 {[%clk 0:02:22]} 19. Qe3 {[%clk 0:02:19]}  Bd5 {[%clk 0:02:17]} 20. Rfe1 {[%clk 0:02:13]}  Rc7 {[%clk 0:02:16]} 21. Bf3 {[%clk 0:01:43]}  Nc4 {[%clk 0:02:05]} 22. Bxd5+ {[%clk 0:01:40]}  Qxd5 {[%clk 0:02:05]} 23. Qg3 {[%clk 0:01:41]}  Qd6 {[%clk 0:01:59]} 24. Nh6+ {[%clk 0:01:31]}  Kh8 {[%clk 0:01:56]} 25. Qf3 {[%clk 0:01:25]}  Rfc8 {[%clk 0:01:53]} 26. Nf7+ {[%clk 0:01:23]}  Kg7 {[%clk 0:01:52]} 27. Nxd6 {[%clk 0:01:23]}  Nxd6 {[%clk 0:01:53]} 28. Rac1 {[%clk 0:01:21]}  Kf7 {[%clk 0:01:51]} 29. Qd5+ {[%clk 0:01:20]}  Kg7 {[%clk 0:01:51]} 30. Re6 {[%clk 0:01:17]}  Rd8 {[%clk 0:01:48]} 31. Rce1 {[%clk 0:01:10]}  Nf7 {[%clk 0:01:44]} 32. Qb3 {[%clk 0:01:06]}  Rdd7 {[%clk 0:01:44]} 33. Qa3 {[%clk 0:01:04]}  Kf8 {[%clk 0:01:42]} 34. Rxf6 {[%clk 0:01:00]} 1-0


[Site "https://www.chess.com"]

[Event "Titled Tuesday Blitz January 10 Early 2023"]
[White "Avalos Parra, Joao"]
[Black "Buksa, Nataliya"]
[WhiteFideId "3402541"]
[BlackFideId "14123622"]
[WhiteElo "2185"]
[BlackElo "2406"]
[Result "1/2-1/2"]
[Round "03"]
[TimeControl "180+2"]
[Date "2023.01.10"]
[WhiteClock "0:00:06"]
[BlackClock "0:00:05"]

1. d4 {[%clk 0:03:00]}  d5 {[%clk 0:02:59]} 2. c4 {[%clk 0:03:00]}  e6 {[%clk 0:03:00]} 3. Nf3 {[%clk 0:03:00]}  Be7 {[%clk 0:03:00]} 4. Nc3 {[%clk 0:03:00]}  Nf6 {[%clk 0:02:59]} 5. Bf4 {[%clk 0:03:01]}  O-O {[%clk 0:02:58]} 6. e3 {[%clk 0:03:01]}  b6 {[%clk 0:02:59]} 7. cxd5 {[%clk 0:02:59]}  Nxd5 {[%clk 0:02:59]} 8. Nxd5 {[%clk 0:02:57]}  Qxd5 {[%clk 0:03:00]} 9. a3 {[%clk 0:02:54]}  c5 {[%clk 0:02:59]} 10. Bd3 {[%clk 0:02:44]}  Bb7 {[%clk 0:02:52]} 11. O-O {[%clk 0:02:42]}  Nd7 {[%clk 0:02:50]} 12. e4 {[%clk 0:02:37]}  Qh5 {[%clk 0:02:47]} 13. Re1 {[%clk 0:02:28]}  cxd4 {[%clk 0:02:43]} 14. Nxd4 {[%clk 0:02:28]}  Qxd1 {[%clk 0:02:40]} 15. Raxd1 {[%clk 0:02:28]}  Nc5 {[%clk 0:02:04]} 16. Bb1 {[%clk 0:02:18]}  Rac8 {[%clk 0:01:53]} 17. f3 {[%clk 0:02:12]}  a6 {[%clk 0:01:52]} 18. Rc1 {[%clk 0:02:00]}  Na4 {[%clk 0:01:39]} 19. b4 {[%clk 0:01:43]}  a5 {[%clk 0:01:22]} 20. bxa5 {[%clk 0:01:10]}  bxa5 {[%clk 0:01:21]} 21. Nb3 {[%clk 0:00:57]}  Bxa3 {[%clk 0:01:16]} 22. Rxc8 {[%clk 0:00:55]}  Rxc8 {[%clk 0:01:11]} 23. Nxa5 {[%clk 0:00:55]}  Bb4 {[%clk 0:01:11]} 24. Nxb7 {[%clk 0:00:47]}  Bxe1 {[%clk 0:01:11]} 25. Bd3 {[%clk 0:00:35]}  Bb4 {[%clk 0:01:07]} 26. h4 {[%clk 0:00:34]}  Nc5 {[%clk 0:01:06]} 27. Nxc5 {[%clk 0:00:34]}  Bxc5+ {[%clk 0:01:06]} 28. Kh2 {[%clk 0:00:34]}  Bd4 {[%clk 0:01:07]} 29. Kh3 {[%clk 0:00:33]}  f6 {[%clk 0:01:06]} 30. Ba6 {[%clk 0:00:31]}  Rc2 {[%clk 0:01:05]} 31. Bd3 {[%clk 0:00:30]}  Rc3 {[%clk 0:01:04]} 32. Bb5 {[%clk 0:00:28]}  Kf7 {[%clk 0:01:04]} 33. h5 {[%clk 0:00:27]}  Rb3 {[%clk 0:01:03]} 34. Bc4 {[%clk 0:00:26]}  Rb1 {[%clk 0:01:03]} 35. Kh2 {[%clk 0:00:24]}  Ke7 {[%clk 0:00:59]} 36. Bd2 {[%clk 0:00:19]}  Rb2 {[%clk 0:00:51]} 37. Bf4 {[%clk 0:00:19]}  e5 {[%clk 0:00:49]} 38. Bg3 {[%clk 0:00:20]}  Rb1 {[%clk 0:00:48]} 39. Bg8 {[%clk 0:00:16]}  h6 {[%clk 0:00:46]} 40. Bh7 {[%clk 0:00:16]}  Bg1+ {[%clk 0:00:45]} 41. Kh3 {[%clk 0:00:16]}  Be3 {[%clk 0:00:45]} 42. Kh2 {[%clk 0:00:17]}  Kd6 {[%clk 0:00:42]} 43. Bf5 {[%clk 0:00:15]}  Kc5 {[%clk 0:00:42]} 44. Bg6 {[%clk 0:00:15]}  Kd4 {[%clk 0:00:42]} 45. Kh3 {[%clk 0:00:15]}  Rh1+ {[%clk 0:00:40]} 46. Kg4 {[%clk 0:00:15]}  Kd3 {[%clk 0:00:39]} 47. Be8 {[%clk 0:00:14]}  Rb1 {[%clk 0:00:36]} 48. Bf7 {[%clk 0:00:12]}  Rb2 {[%clk 0:00:25]} 49. Kh3 {[%clk 0:00:11]}  Rc2 {[%clk 0:00:23]} 50. Be8 {[%clk 0:00:11]}  Rb2 {[%clk 0:00:18]} 51. Bf7 {[%clk 0:00:10]}  Bg5 {[%clk 0:00:18]} 52. Be6 {[%clk 0:00:09]}  Ke3 {[%clk 0:00:18]} 53. Bd5 {[%clk 0:00:08]}  Rb4 {[%clk 0:00:17]} 54. Bc6 {[%clk 0:00:08]}  Ke2 {[%clk 0:00:17]} 55. Bd5 {[%clk 0:00:07]}  Kf1 {[%clk 0:00:18]} 56. Bg8 {[%clk 0:00:06]}  Kg1 {[%clk 0:00:18]} 57. Bd5 {[%clk 0:00:06]}  Rb2 {[%clk 0:00:17]} 58. Bc4 {[%clk 0:00:05]}  Rxg2 {[%clk 0:00:16]} 59. Bd3 {[%clk 0:00:04]}  Ra2 {[%clk 0:00:16]} 60. Bc4 {[%clk 0:00:04]}  Rb2 {[%clk 0:00:15]} 61. Bd5 {[%clk 0:00:05]}  Bf4 {[%clk 0:00:15]} 62. Bxf4 {[%clk 0:00:04]}  exf4 {[%clk 0:00:15]} 63. Kg4 {[%clk 0:00:05]}  Kf2 {[%clk 0:00:15]} 64. Kxf4 {[%clk 0:00:06]}  Rd2 {[%clk 0:00:11]} 65. Bc6 {[%clk 0:00:05]}  Rd4 {[%clk 0:00:10]} 66. Kf5 {[%clk 0:00:05]}  Rc4 {[%clk 0:00:09]} 67. Bd5 {[%clk 0:00:05]}  Rc5 {[%clk 0:00:09]} 68. Kg6 {[%clk 0:00:05]}  Kxf3 {[%clk 0:00:09]} 69. Kxg7 {[%clk 0:00:06]}  Kg4 {[%clk 0:00:08]} 70. Kxh6 {[%clk 0:00:06]}  f5 {[%clk 0:00:08]} 71. Kg6 {[%clk 0:00:04]}  f4 {[%clk 0:00:08]} 72. h6 {[%clk 0:00:04]}  f3 {[%clk 0:00:08]} 73. h7 {[%clk 0:00:05]}  Rc8 {[%clk 0:00:08]} 74. Bg8 {[%clk 0:00:06]}  f2 {[%clk 0:00:08]} 75. h8=Q {[%clk 0:00:06]}  f1=Q {[%clk 0:00:09]} 76. Qh5+ {[%clk 0:00:06]}  Kg3 {[%clk 0:00:09]} 77. Qf5 {[%clk 0:00:07]}  Rc6+ {[%clk 0:00:07]} 78. Be6 {[%clk 0:00:06]}  Qxf5+ {[%clk 0:00:05]} 79. exf5 {[%clk 0:00:07]}  Kf4 {[%clk 0:00:05]} 80. Kf6 {[%clk 0:00:07]}  Ke4 {[%clk 0:00:05]} 81. Ke7 {[%clk 0:00:08]}  Ke5 {[%clk 0:00:06]} 82. Kf7 {[%clk 0:00:06]}  Rd6 {[%clk 0:00:06]} 83. Kg6 {[%clk 0:00:06]}  Ra6 {[%clk 0:00:06]} 84. Kf7 {[%clk 0:00:07]}  Ra7+ {[%clk 0:00:06]} 85. Ke8 {[%clk 0:00:07]}  Kf6 {[%clk 0:00:05]} 86. Kd8 {[%clk 0:00:08]}  Rh7 {[%clk 0:00:05]} 87. Kc8 {[%clk 0:00:08]}  Rh8+ {[%clk 0:00:06]} 88. Kc7 {[%clk 0:00:08]}  Ke7 {[%clk 0:00:06]} 89. Kc6 {[%clk 0:00:08]}  Ra8 {[%clk 0:00:05]} 90. Kd5 {[%clk 0:00:09]}  Ra1 {[%clk 0:00:06]} 91. Ke4 {[%clk 0:00:10]}  Ra5 {[%clk 0:00:07]} 92. Kf4 {[%clk 0:00:10]}  Kf6 {[%clk 0:00:07]} 93. Kg4 {[%clk 0:00:10]}  Ra4+ {[%clk 0:00:08]} 94. Kf3 {[%clk 0:00:11]}  Ke5 {[%clk 0:00:08]} 95. Kg3 {[%clk 0:00:10]}  Rb4 {[%clk 0:00:08]} 96. Kf3 {[%clk 0:00:11]}  Rf4+ {[%clk 0:00:09]} 97. Ke2 {[%clk 0:00:11]}  Ke4 {[%clk 0:00:09]} 98. Kd2 {[%clk 0:00:11]}  Rh4 {[%clk 0:00:09]} 99. Kc3 {[%clk 0:00:12]}  Ke5 {[%clk 0:00:07]} 100. Kb3 {[%clk 0:00:11]}  Rf4 {[%clk 0:00:07]} 101. Kc3 {[%clk 0:00:12]}  Rf3+ {[%clk 0:00:07]} 102. Kc4 {[%clk 0:00:12]}  Re3 {[%clk 0:00:07]} 103. Kc5 {[%clk 0:00:13]}  Rc3+ {[%clk 0:00:08]} 104. Kb6 {[%clk 0:00:13]}  Rc1 {[%clk 0:00:08]} 105. Kb5 {[%clk 0:00:14]}  Kd6 {[%clk 0:00:08]} 106. Kb4 {[%clk 0:00:13]}  Rc7 {[%clk 0:00:08]} 107. Kb3 {[%clk 0:00:13]}  Kc5 {[%clk 0:00:07]} 108. Kc3 {[%clk 0:00:12]}  Kd6+ {[%clk 0:00:06]} 109. Kd4 {[%clk 0:00:13]}  Ra7 {[%clk 0:00:07]} 110. Ke4 {[%clk 0:00:13]}  Ra4+ {[%clk 0:00:08]} 111. Kf3 {[%clk 0:00:14]}  Ke5 {[%clk 0:00:08]} 112. Kg3 {[%clk 0:00:14]}  Rf4 {[%clk 0:00:07]} 113. Kg2 {[%clk 0:00:14]}  Ke4 {[%clk 0:00:08]} 114. Kg3 {[%clk 0:00:14]}  Ke3 {[%clk 0:00:08]} 115. Kg2 {[%clk 0:00:13]}  Rg4+ {[%clk 0:00:09]} 116. Kh3 {[%clk 0:00:13]}  Kf4 {[%clk 0:00:07]} 117. Kh2 {[%clk 0:00:11]}  Kf3 {[%clk 0:00:05]} 118. Bd7 {[%clk 0:00:10]}  Rh4+ {[%clk 0:00:04]} 119. Kg1 {[%clk 0:00:10]}  Rh6 {[%clk 0:00:04]} 120. Be6 {[%clk 0:00:09]}  Rh7 {[%clk 0:00:04]} 121. Bc8 {[%clk 0:00:08]}  Rc7 {[%clk 0:00:03]} 122. Be6 {[%clk 0:00:07]}  Rc2 {[%clk 0:00:03]} 123. Bd5+ {[%clk 0:00:04]}  Kg3 {[%clk 0:00:03]} 124. Kf1 {[%clk 0:00:04]}  Rd2 {[%clk 0:00:04]} 125. Be6 {[%clk 0:00:04]}  Kf3 {[%clk 0:00:04]} 126. Ke1 {[%clk 0:00:04]}  Rh2 {[%clk 0:00:05]} 127. Kd1 {[%clk 0:00:04]}  Ke3 {[%clk 0:00:04]} 128. Kc1 {[%clk 0:00:05]}  Kd3 {[%clk 0:00:05]} 129. f6 {[%clk 0:00:03]}  Rf2 {[%clk 0:00:05]} 130. f7 {[%clk 0:00:03]}  Kc3 {[%clk 0:00:06]} 131. Kd1 {[%clk 0:00:03]}  Kd3 {[%clk 0:00:04]} 132. Ke1 {[%clk 0:00:04]}  Ke3 {[%clk 0:00:04]} 133. Kd1 {[%clk 0:00:03]}  Rf6 {[%clk 0:00:04]} 134. Ba2 {[%clk 0:00:03]}  Kd3 {[%clk 0:00:04]} 135. Bb1+ {[%clk 0:00:02]}  Kc3 {[%clk 0:00:03]} 136. Ba2 {[%clk 0:00:03]}  Kb2 {[%clk 0:00:03]} 137. Bd5 {[%clk 0:00:03]}  Kc3 {[%clk 0:00:04]} 138. Ke2 {[%clk 0:00:03]}  Kd4 {[%clk 0:00:05]} 139. Ba2 {[%clk 0:00:03]}  Rf5 {[%clk 0:00:04]} 140. Bb1 {[%clk 0:00:03]}  Rf4 {[%clk 0:00:05]} 141. Ba2 {[%clk 0:00:03]}  Rf5 {[%clk 0:00:05]} 142. Ke1 {[%clk 0:00:03]}  Rf3 {[%clk 0:00:05]} 143. Ke2 {[%clk 0:00:04]}  Rf4 {[%clk 0:00:05]} 144. Ke1 {[%clk 0:00:04]}  Ke3 {[%clk 0:00:05]} 145. Kd1 {[%clk 0:00:05]}  Rf2 {[%clk 0:00:05]} 146. Be6 {[%clk 0:00:05]}  Kd3 {[%clk 0:00:05]} 147. Ke1 {[%clk 0:00:04]}  Re2+ {[%clk 0:00:05]} 148. Kf1 {[%clk 0:00:04]}  Rxe6 {[%clk 0:00:02]} 149. f8=Q {[%clk 0:00:04]}  Re4 {[%clk 0:00:03]} 150. Qf3+ {[%clk 0:00:05]}  Kd4 {[%clk 0:00:03]} 151. Kf2 {[%clk 0:00:05]}  Ke5 {[%clk 0:00:04]} 152. Qf8 {[%clk 0:00:05]}  Rf4+ {[%clk 0:00:04]} 153. Qxf4+ {[%clk 0:00:06]}  Kxf4 {[%clk 0:00:05]} 1/2-1/2


[Site "https://www.chess.com"]